bitfinex/quotes_ETHUSD_20260214
["timestamp","ask_amount","ask_price","bid_price","bid_amount"]
[1771075175831,1.20779494,2071.8,2071.2,1.551]
[1771075176237,0.0011,2071.8,2071.2,1.551]
[1771075176535,1.20779048,2071.8,2071.2,1.551]
[1771075176920,1.20779048,2071.8,2071.2,2.75802272]
[1771075177838,1.20779048,2071.8,2071.2,1.551]
[1771075178039,1.20779048,2071.8,2071.1,1.55]
[1771075178420,1.20779048,2071.8,2071.2,1.89605377]
[1771075178733,1.20779048,2071.8,2071.1,1.55]
[1771075179234,1.20779048,2071.8,2071.1,2.75704517]
[1771075179235,0.0011,2071.8,2071.1,2.75704517]
[1771075179939,0.0011,2071.8,2071.2,1.89605377]
[1771075180127,1.20755227,2072.2,2071.2,1.89605377]
[1771075180312,0.0011,2072.2,2071.2,1.89605377]
[1771075180637,0.0011,2072.2,2071.4,2.07535706]
[1771075181040,0.0011,2072.2,2071.6,2.07535706]
[1771075181236,0.0011,2072.2,2071.8,2.07535706]
[1771075181237,0.0011,2072.1,2071.8,2.07535706]
[1771075181534,0.0011,2072.3,2071.8,2.07535706]
[1771075181743,0.0011,2072.3,2071.6,2.75475449]
[1771075182311,0.0011,2072.3,2071.4,1.20687264]
[1771075182508,0.0011,2072.3,2071.5,1.548]
[1771075183531,0.0011,2072.3,2071.3,1.20693678]
[1771075183532,1.62313906,2072.3,2071.3,1.20693678]
[1771075183839,0.0011,2072.3,2071.5,2.07535706]
[1771075185637,0.0011,2072.3,2071.7,2.07535706]
[1771075186823,0.0011,2072.3,2071.6,2.75079667]
[1771075187715,1.6034029,2072.3,2071.2,2.07535706]
[1771075188228,1.6023029,2072.2,2071.2,2.07535706]
[1771075188416,1.6023029,2072.2,2071.1,1.544]
[1771075190144,1.59440481,2072.0,2071.1,1.544]
[1771075190447,1.59440481,2072.0,2070.6,4.82469728]
[1771075190744,1.59440481,2072.0,2070.6,3.61735706]
[1771075190942,1.59440481,2072.0,2070.6,4.82473556]
[1771075192111,1.58651232,2071.8,2070.6,3.28273556]
[1771075192315,1.58651232,2071.8,2070.6,4.82373556]
[1771075192731,1.58651232,2071.8,2070.6,2.7483785]
[1771075193044,1.58651232,2071.8,2070.7,2.07535706]
[1771075193614,1.58651232,2071.8,2070.5,4.83074263]
[1771075193615,1.58651232,2071.8,2070.5,0.001]
[1771075193839,1.58651232,2071.8,2070.5,2.74843395]
[1771075194319,1.57861272,2071.6,2070.5,4.82379101]
[1771075195655,1.57861272,2071.6,2070.5,4.82378593]
[1771075196545,1.20685493,2071.5,2070.5,4.82378593]
[1771075197753,2.76968464,2071.5,2070.5,4.82178593]
[1771075198350,2.76968464,2071.5,2070.6,2.07535706]
[1771075199460,2.76968464,2071.5,2070.6,3.2827302]
[1771075199820,1.55493819,2071.4,2070.5,1.538]
[1771075200261,1.55493819,2071.4,2070.3,5.70021426]
[1771075200262,7.93493819,2071.4,2070.3,0.001]
[1771075200425,2.76179312,2071.5,2070.4,2.07535706]
[1771075200622,1.55101619,2071.4,2070.4,2.07535706]
[1771075201160,1.20697146,2071.3,2070.4,3.2828277]
[1771075201523,1.20697146,2071.3,2070.5,1.96143448]
[1771075202231,1.20697146,2071.3,2070.3,4.83120543]
[1771075202232,2.75502054,2071.3,2070.3,3.16996381]
[1771075202430,2.75502054,2071.3,2070.3,4.70496381]
[1771075202634,2.75502054,2071.3,2070.4,1.96143448]
[1771075203040,1.20697146,2071.3,2070.4,1.96143448]
[1771075203232,1.20691319,2071.4,2070.6,1.96143448]
[1771075203760,4.82721128,2071.6,2070.6,1.96143448]
[1771075205453,4.82721128,2071.6,2070.7,3.16875567]
[1771075206657,4.82721128,2071.6,2070.7,1.20732119]
[1771075207130,4.82721128,2071.6,2070.8,1.96143448]
[1771075207756,4.82721128,2071.6,2070.9,1.20720459]
[1771075208128,4.82721128,2071.6,2070.9,3.16863907]
[1771075208729,13.67276021,2072.3,2071.0,1.96143448]
[1771075208730,1.20662194,2071.9,2071.0,1.96143448]
[1771075209142,1.20660889,2072.0,2071.0,1.96143448]
[1771075210860,1.20660889,2072.0,2071.2,1.96143448]
[1771075211729,1.20654813,2072.1,2071.2,1.96143448]
[1771075212141,1.20646351,2072.2,2071.2,1.96143448]
[1771075212351,4.82675468,2072.3,2071.2,1.96143448]
[1771075212352,1.2074891,2072.3,2071.2,1.96143448]
[1771075212966,1.2074891,2072.3,2071.4,1.96143448]
[1771075213177,1.2074891,2072.3,2071.6,1.96143448]
[1771075214071,0.0011,2072.3,2071.6,1.96143448]
[1771075214942,0.0011,2072.3,2071.8,1.96143448]
[1771075216287,0.0011,2072.5,2071.9,1.96143448]
[1771075216464,0.0011,2072.9,2072.3,1.96143448]
[1771075217377,0.0011,2072.6,2072.5,1.96143448]
[1771075217555,0.0011,2072.9,2072.6,1.96143448]
[1771075218083,0.0011,2072.8,2072.5,1.526]
[1771075218272,0.0011,2072.8,2072.5,3.48743448]
[1771075218468,0.0011,2073.1,2072.6,1.96143448]
[1771075219848,0.0011,2073.1,2072.7,3.1675907]
[1771075220982,1.20702813,2073.1,2072.1,1.96143448]
[1771075221183,1.20702813,2073.1,2072.3,1.96143448]
[1771075222676,0.0011,2073.1,2072.5,1.96143448]
[1771075223794,0.0011,2073.4,2072.9,1.96143448]
[1771075224079,0.0011,2073.4,2072.4,1.20633082]
[1771075224080,0.0011,2073.8,2073.1,1.96143448]
[1771075224583,0.0011,2073.8,2073.3,1.96143448]
[1771075225089,0.0011,2073.8,2073.1,1.20588512]
[1771075225282,0.0011,2073.8,2073.2,1.525]
[1771075226896,0.0011,2073.8,2073.2,2.73085743]
[1771075228299,0.0011,2073.8,2073.2,1.20585743]
[1771075228470,0.0011,2073.8,2073.2,2.72885743]
[1771075228677,0.0011,2073.8,2073.3,1.96143448]
[1771075229010,0.0011,2073.8,2073.2,1.523]
[1771075229172,0.0011,2073.8,2073.0,4.69041356]
[1771075229375,1.52434365,2073.8,2072.8,2.72909803]
[1771075229986,1.52434365,2073.8,2072.8,4.69053251]
[1771075230199,0.0011,2073.8,2072.9,1.96143448]
[1771075230791,1.51529519,2073.8,2072.9,1.96143448]
[1771075230998,1.20557457,2073.7,2072.9,3.16746998]
[1771075232681,1.20557457,2073.7,2073.0,2.00341867]
[1771075233070,1.50527829,2073.8,2072.8,1.523]
[1771075233282,1.50527829,2073.8,2072.8,2.72909589]
[1771075233621,1.50527829,2073.8,2072.8,2.53209589]
[1771075233789,1.50527829,2073.8,2072.8,4.53551456]
[1771075234416,1.50527829,2073.8,2072.9,2.00341867]
[1771075234606,0.0011,2073.8,2072.9,2.00341867]
[1771075236586,0.0011,2073.8,2072.9,3.20944622]
[1771075237472,1.48574418,2073.8,2072.7,3.52041867]
[1771075239004,1.20557457,2073.7,2072.8,3.2095167]
[1771075240276,2.67557028,2073.7,2072.8,2.00341867]
[1771075240777,1.46518909,2073.6,2072.5,1.97967483]
[1771075241082,1.46518909,2073.4,2072.5,4.70193651]
[1771075241504,1.46518909,2073.4,2072.5,3.49567483]
[1771075241694,1.46039456,2073.3,2072.4,0.001]
[1771075242113,1.46039456,2073.3,2072.2,0.001]
[1771075242427,1.46039456,2072.9,2071.9,1.97967483]
[1771075242622,1.45566682,2072.8,2071.8,0.001]
[1771075243037,1.45566682,2072.6,2071.8,0.001]
[1771075243516,1.45566682,2072.6,2072.2,0.001]
[1771075244097,1.45566682,2072.6,2071.8,0.001]
[1771075244299,1.20615622,2072.7,2071.8,1.98067483]
[1771075244527,2.65137566,2072.7,2071.8,0.001]
[1771075244730,1.44521944,2072.6,2071.8,0.001]
[1771075245015,2.65149205,2072.5,2071.8,0.001]
[1771075246430,1.444,2072.4,2071.8,0.001]
[1771075247311,1.20638903,2072.3,2071.8,0.001]
[1771075247728,2.63745065,2072.3,2071.8,0.001]
[1771075248243,1.43106162,2072.2,2070.7,1.20729247]
[1771075248546,1.84713608,2072.1,2070.7,3.1869673]
[1771075249543,3.05369978,2072.0,2070.8,1.97967483]
[1771075249744,1.2065637,2072.0,2071.0,1.97967483]
[1771075249948,1.2065637,2072.0,2071.1,1.97967483]
[1771075251552,1.20653619,2072.1,2071.2,3.18670457]
[1771075252651,5.69479492,2072.2,2071.3,1.97967483]
[1771075252652,2.07549175,2072.2,2071.3,1.97967483]
[1771075253224,0.869,2072.2,2071.3,1.97967483]
[1771075253624,0.68331351,2072.3,2071.6,1.97967483]
[1771075254255,0.68331351,2072.3,2071.7,1.97967483]
[1771075255253,0.68331351,2072.3,2071.6,1.97967483]
[1771075255559,0.0011,2072.6,2071.6,1.97967483]
[1771075255755,0.0011,2072.6,2071.7,1.20673842]
[1771075255955,0.0011,2072.6,2071.8,1.97967483]
[1771075256155,0.0011,2072.6,2071.9,1.97967483]
[1771075256726,0.0011,2072.6,2072.1,1.97967483]
[1771075257865,0.0011,2072.6,2072.2,1.20644725]
[1771075258362,0.0011,2072.6,2072.1,3.18616688]
[1771075259062,0.0011,2072.6,2072.2,1.97967483]
[1771075259248,0.54775081,2072.8,2072.2,1.97967483]
[1771075259756,1.75385199,2072.8,2072.1,1.20649205]
[1771075259973,1.75385199,2072.8,2072.1,2.71349205]
[1771075260127,1.75385199,2072.8,2072.1,1.20649205]
[1771075260335,0.54775081,2072.8,2071.9,1.97967483]
[1771075260744,0.54775081,2072.8,2072.1,1.97967483]
[1771075261965,0.54775081,2072.8,2072.3,1.20638903]
[1771075262367,0.54775081,2072.8,2072.0,1.901727]
[1771075262368,1.75384902,2072.8,2072.0,1.901727]
[1771075262564,3.77433134,2072.8,2072.0,1.20655213]
[1771075262771,3.77433134,2072.8,2071.9,2.7145937]
[1771075263163,3.77433134,2072.8,2071.9,4.6163207]
[1771075264043,1.75384902,2072.8,2072.0,1.901727]
[1771075264243,0.54775081,2072.8,2072.0,1.901727]
[1771075264448,1.75385353,2072.8,2072.0,1.901727]
[1771075264758,1.75385353,2072.8,2071.9,2.7145937]
[1771075264959,3.77433585,2072.8,2071.9,1.508]
[1771075265161,1.75385353,2072.8,2071.6,7.25476]
[1771075265377,1.75385353,2072.8,2071.7,1.901727]
[1771075265764,2.02048232,2072.7,2071.7,1.901727]
[1771075266161,1.20621441,2072.6,2071.8,3.10840718]
[1771075266537,1.20621441,2072.6,2071.9,1.901727]
[1771075268376,4.82475689,2072.7,2072.0,1.2065637]
[1771075269478,4.82475689,2072.7,2071.9,3.10831451]
[1771075270261,6.84523921,2072.7,2071.9,1.901727]
[1771075270584,6.84523921,2072.7,2071.8,2.71464019]
[1771075270780,6.84523921,2072.7,2071.8,4.61636719]
[1771075271077,6.84523921,2072.7,2071.9,1.901727]
[1771075271480,6.84523921,2072.7,2071.8,1.901727]
[1771075271481,4.82475689,2072.7,2071.8,1.901727]
[1771075271688,6.84523921,2072.7,2071.8,1.901727]
[1771075272800,6.84523921,2072.7,2071.8,3.10838383]
[1771075274502,6.84523921,2072.7,2071.9,1.901727]
[1771075274995,4.82475689,2072.7,2072.0,3.1082907]
[1771075275301,4.82475689,2072.7,2072.0,1.901727]
[1771075275611,4.82475689,2072.7,2071.4,4.82764692]
[1771075275612,2.02048232,2072.5,2071.0,1.901727]
[1771075275899,7.05427771,2072.6,2070.8,0.001]
[1771075275900,2.02048232,2072.3,2070.8,0.001]
[1771075276100,2.02048232,2072.1,2070.8,0.001]
[1771075277104,2.02048232,2071.9,2070.8,0.001]
[1771075279196,2.02048232,2071.7,2070.8,0.001]
[1771075279371,2.02048232,2071.5,2070.8,0.001]
[1771075281312,2.02048232,2071.3,2070.6,0.001]
[1771075283705,1.20702974,2071.2,2070.6,0.001]
[1771075283883,1.20702974,2071.2,2069.8,1.901727]
[1771075283884,3.46048232,2071.1,2069.8,1.901727]
[1771075284081,2.02048232,2071.0,2069.8,1.901727]
[1771075284976,2.02048232,2071.0,2069.6,1.902727]
[1771075285184,2.02048232,2071.0,2069.6,0.001]
[1771075285578,2.02048232,2070.8,2069.6,0.001]
[1771075285783,2.02048232,2070.6,2069.6,0.001]
[1771075286017,2.02048232,2070.4,2069.6,0.001]
[1771075286603,1.189,2070.5,2069.6,1.902727]
[1771075286912,1.189,2070.5,2069.6,0.001]
[1771075286913,2.02048232,2070.4,2069.6,0.001]
[1771075287299,1.189,2070.5,2069.6,1.902727]
[1771075287859,2.39648314,2070.5,2069.8,1.901727]
[1771075288345,2.39643894,2070.5,2069.8,1.901727]
[1771075290045,2.39643894,2070.5,2069.9,3.10951481]
[1771075290046,1.189,2070.5,2069.9,3.10951481]
[1771075290348,2.3964416,2070.5,2069.9,1.20778781]
[1771075290561,2.3964416,2070.5,2069.7,3.10958749]
[1771075290852,1.189,2070.5,2069.8,1.901727]
[1771075291362,1.2073864,2070.6,2069.8,1.901727]
[1771075291562,1.20730653,2070.8,2069.8,1.901727]
[1771075291764,8.29135253,2070.9,2070.0,1.94330931]
[1771075291765,1.442,2070.9,2070.0,1.94330931]
[1771075292061,1.442,2070.9,2070.2,1.94330931]
[1771075293072,0.869,2071.1,2070.2,1.94330931]
[1771075293263,2.07609798,2071.1,2070.2,1.94330931]
[1771075293431,0.869,2071.1,2070.2,1.94330931]
[1771075293634,4.03898835,2071.1,2070.1,3.15098043]
[1771075293861,4.03898835,2071.1,2069.4,4.83316862]
[1771075293862,1.96286442,2070.8,2069.6,1.2089612]
[1771075294159,1.96286442,2070.6,2069.6,0.001]
[1771075294739,1.96286442,2070.6,2069.6,1.20896109]
[1771075294950,1.96286442,2070.6,2069.6,0.001]
[1771075295532,1.96286442,2070.6,2069.6,3.15226813]
[1771075295732,1.96286442,2070.6,2069.6,1.20895882]
[1771075296050,3.17030223,2070.5,2069.6,0.001]
[1771075296833,1.96286442,2070.4,2069.6,0.001]
[1771075298244,1.20755446,2070.3,2069.6,0.001]
[1771075298441,1.96286442,2070.4,2069.6,0.001]
[1771075298650,1.2073795,2070.6,2069.6,0.001]
[1771075298961,1.2073795,2070.6,2069.6,1.94430931]
[1771075299165,3.17024392,2070.6,2069.6,1.94430931]
[1771075299352,1.96286442,2070.5,2069.6,0.001]
[1771075300238,1.20749613,2070.4,2069.6,1.20896289]
[1771075301066,2.99939346,2070.4,2069.6,0.001]
[1771075301869,4.82952257,2070.6,2069.6,1.94899767]
[1771075301870,4.82952985,2070.6,2069.6,1.94899767]
[1771075302453,4.82952985,2070.6,2069.7,1.20790452]
[1771075302647,4.82952985,2070.6,2069.6,1.20895453]
[1771075302648,2.89189733,2070.4,2069.6,1.20895453]
[1771075302958,1.1,2070.4,2069.6,1.20895453]
[1771075303144,1.1,2070.4,2069.7,1.94799767]
[1771075303341,1.2073795,2070.6,2069.7,1.94799767]
[1771075303668,2.99927683,2070.6,2069.7,1.94799767]
[1771075303867,1.79189733,2070.5,2069.6,1.20896208]
[1771075304583,1.20749613,2070.4,2069.6,0.001]
[1771075304756,2.99939346,2070.4,2069.6,0.001]
[1771075304957,1.79189733,2070.3,2069.4,0.001]
[1771075305143,1.79189733,2070.1,2069.1,0.001]
[1771075305344,1.79189733,2069.9,2069.1,0.001]
[1771075305766,1.44,2070.0,2069.1,1.94899767]
[1771075305964,1.44,2070.0,2069.1,3.15724724]
[1771075306268,1.44,2070.0,2069.1,3.15724872]
[1771075306478,1.20778781,2069.9,2069.1,1.94899767]
[1771075306652,1.20778781,2069.9,2069.1,3.15724723]
[1771075306848,1.20778781,2069.9,2069.1,1.94899767]
[1771075307050,2.99968514,2069.9,2069.1,0.001]
[1771075307756,1.20778781,2069.9,2069.1,1.20923325]
[1771075308071,1.44,2070.3,2069.2,1.94799767]
[1771075308374,3.23189733,2070.3,2069.2,1.94799767]
[1771075308555,1.20761279,2070.2,2069.2,3.15617763]
[1771075308745,2.64758473,2070.3,2069.3,1.94799767]
[1771075308943,1.44,2070.3,2069.3,1.94799767]
[1771075309950,2.64755789,2070.3,2069.3,1.94799767]
[1771075310351,1.44,2070.3,2069.3,1.94799767]
[1771075310591,1.44,2070.3,2069.5,1.94799767]
[1771075310883,2.64756278,2070.3,2069.5,1.94799767]
[1771075311254,2.64756537,2070.3,2069.5,1.94799767]
[1771075311649,0.28406589,2070.4,2069.5,1.94799767]
[1771075312781,1.49157661,2070.4,2069.7,1.94799767]
[1771075312955,0.28406589,2070.4,2069.7,1.94799767]
[1771075313973,1.49156493,2070.4,2069.6,1.20796289]
[1771075314178,1.49156584,2070.4,2069.7,1.94799767]
[1771075314561,0.28406589,2070.4,2069.8,3.15584383]
[1771075315070,0.28406589,2070.4,2069.9,1.94799767]
[1771075316098,1.49156937,2070.4,2069.6,3.15596056]
[1771075316382,0.28406589,2070.4,2069.6,3.15596056]
[1771075316556,1.49156463,2070.4,2069.6,4.65196056]
[1771075316963,1.49156463,2070.4,2069.6,3.15596056]
[1771075317174,1.49156463,2070.4,2069.6,4.65296056]
[1771075318458,0.28406589,2070.4,2069.7,1.94799767]
[1771075318658,0.28406589,2070.4,2069.9,1.94799767]
[1771075319287,0.08406589,2070.4,2069.9,1.94799767]
[1771075320156,0.08406589,2070.4,2069.7,1.20786111]
[1771075320362,1.29156512,2070.4,2069.6,2.70392222]
[1771075320585,0.08406589,2070.4,2069.7,1.94799767]
[1771075320784,0.08406589,2070.4,2069.9,1.94799767]
[1771075320985,0.08406589,2070.4,2070.0,1.94799767]
[1771075321188,0.0011,2070.7,2070.1,1.78345279]
[1771075322692,0.0011,2070.7,2070.2,1.20761279]
[1771075322896,0.0011,2070.7,2070.2,2.99106558]
[1771075323891,0.0011,2070.7,2070.0,1.2076973]
[1771075325498,0.0011,2070.7,2069.9,4.48921157]
[1771075325706,0.0011,2070.7,2069.9,2.99121157]
[1771075325913,0.0011,2070.7,2069.9,4.48821157]
[1771075326490,0.0011,2070.7,2070.0,1.78345279]
[1771075327520,0.0011,2070.9,2070.2,1.78345279]
[1771075328393,1.85194145,2070.8,2069.2,10.18572819]
[1771075328593,1.85194145,2070.6,2069.2,6.61614798]
[1771075328979,1.85194145,2070.6,2069.2,4.49264919]
[1771075329669,1.85194145,2070.4,2069.2,4.49259606]
[1771075330104,1.1,2070.2,2069.2,2.99159606]
[1771075330403,2.95194145,2070.2,2069.2,2.70814327]
[1771075330775,1.1,2070.2,2069.2,4.49159606]
[1771075331701,1.20767112,2070.1,2069.2,4.49159606]
[1771075331874,1.1,2070.2,2069.3,1.78345279]
[1771075332070,1.2076151,2070.2,2069.3,1.78345279]
[1771075332476,3.05937926,2070.5,2069.3,1.78345279]
[1771075332703,3.05937926,2070.5,2069.2,2.70814327]
[1771075332704,1.85194145,2070.4,2069.2,2.70814327]
[1771075333182,1.85194145,2070.4,2069.3,1.498]
[1771075333594,1.85194145,2070.4,2069.1,0.001]
[1771075333905,1.85194145,2070.2,2069.1,2.70725186]
[1771075335093,1.1,2070.0,2069.1,2.70725186]
[1771075335414,2.95194145,2070.0,2069.1,1.499]
[1771075335907,1.20778781,2069.9,2069.1,1.499]
[1771075336124,1.20778781,2069.9,2069.1,1.20924857]
[1771075336977,1.20778781,2069.9,2069.1,2.99270136]
[1771075337180,1.20778781,2069.9,2069.1,0.001]
[1771075337413,1.20778781,2069.9,2069.1,1.20923883]
[1771075337908,3.05943758,2070.4,2069.2,1.78345279]
[1771075338686,1.20749613,2070.4,2069.4,1.78345279]
[1771075338888,1.20749613,2070.4,2069.5,3.28045279]
[1771075339817,1.20749613,2070.4,2069.6,1.20796289]
[1771075340418,3.05943758,2070.4,2069.5,2.70501731]
[1771075340821,1.85194145,2070.3,2069.1,0.001]
[1771075341300,1.1,2070.2,2069.1,0.001]
[1771075341506,1.85194145,2070.0,2069.1,0.001]
[1771075341906,1.85194145,2069.8,2069.1,0.001]
[1771075342216,1.20778781,2069.9,2068.7,1e-08]
[1771075342217,1.85194145,2069.6,2068.7,1e-08]
[1771075342418,3.28294145,2069.5,2068.7,1e-08]
[1771075342713,1.85194145,2069.4,2068.7,1e-08]
[1771075342911,1.431,2069.8,2068.7,1.7834528]
[1771075343909,2.63888781,2069.8,2068.8,1.20843]
[1771075344112,2.63888781,2069.8,2068.9,1.78345279]
[1771075344405,1.431,2069.8,2068.9,1.78345279]
[1771075344604,1.20783033,2069.9,2068.9,1.78345279]
[1771075345197,0.87,2070.0,2068.9,1.78345279]
[1771075345440,2.07774964,2070.0,2068.9,1.78345279]
[1771075345750,1.20755446,2070.3,2068.9,1.78345279]
[1771075346048,1.20755446,2070.3,2069.1,2.99170758]
[1771075346247,1.20755446,2070.3,2069.1,2.84170758]
[1771075346530,1.1,2070.1,2069.1,2.84170758]
[1771075347930,2.30767255,2070.1,2069.3,1.20813801]
[1771075348135,1.1,2070.1,2069.3,2.9915908]
[1771075348327,1.1,2070.1,2069.4,1.78345279]
[1771075348731,1.20759653,2070.3,2069.4,1.78345279]
[1771075349234,0.34105011,2070.4,2069.4,1.78345279]
[1771075350043,0.34105011,2070.4,2069.6,5.353033]
[1771075350247,1.54855496,2070.4,2069.6,1.78345279]
[1771075350420,1.54855496,2070.4,2069.6,3.27745279]
[1771075350736,0.34105011,2070.4,2069.6,3.27745279]
[1771075350927,1.5485524,2070.4,2069.6,3.27745279]
[1771075351104,0.34105011,2070.4,2069.6,3.27745279]
[1771075352034,0.34105011,2070.4,2069.7,1.20790452]
[1771075352337,1.54854779,2070.4,2069.7,1.20790452]
[1771075352832,0.0011,2070.7,2069.8,1.68863866]
[1771075353047,0.0011,2070.7,2069.7,1.20790452]
[1771075353048,0.0011,2070.9,2070.0,1.68863866]
[1771075353215,0.0011,2070.9,2069.7,1.20790452]
[1771075353216,0.0011,2070.9,2070.2,1.68863866]
[1771075353624,0.0011,2070.9,2070.1,1.494]
[1771075353920,0.0011,2070.9,2070.1,3.18263866]
[1771075354125,0.0011,2070.9,2070.2,1.20761279]
[1771075354435,0.0011,2070.9,2070.2,2.89625145]
[1771075354935,0.0011,2070.9,2070.2,1.20761279]
[1771075355227,0.0011,2070.9,2070.3,1.68863866]
[1771075355940,0.0011,2070.9,2070.2,1.20761279]
[1771075356642,0.0011,2070.9,2070.2,2.89625145]
[1771075357018,0.0011,2070.9,2070.3,3.18163866]
[1771075358337,0.0011,2070.9,2070.4,1.20749613]
[1771075360335,0.0011,2070.9,2070.4,2.89613479]
[1771075361313,0.0011,2071.0,2070.4,2.89613479]
[1771075362643,0.0011,2071.2,2070.6,1.71361286]
[1771075362862,0.0011,2071.3,2070.4,1.20749613]
[1771075362863,0.0011,2071.3,2070.7,3.20961286]
[1771075363352,0.0011,2071.3,2070.8,5.353033]
[1771075363656,0.0011,2071.3,2070.7,3.20961286]
[1771075363859,1.73432785,2071.2,2070.4,1.20749613]
[1771075364156,1.73432785,2071.2,2070.1,1.20764072]
[1771075364347,1.73432785,2071.2,2070.1,2.92125358]
[1771075364657,1.73432785,2071.2,2070.2,1.71361286]
[1771075365037,1.20708802,2071.1,2070.3,1.20755446]
[1771075365434,0.0011,2071.3,2070.3,2.92116732]
[1771075365632,0.0011,2071.3,2070.6,5.353033]
[1771075365850,0.0011,2071.3,2070.6,1.71361286]
[1771075366551,1.20808555,2071.3,2070.3,5.29016732]
[1771075366863,0.0011,2071.3,2070.5,1.71361286]
[1771075367161,0.0011,2071.3,2070.6,2.7063795]
[1771075368166,0.0011,2071.3,2070.6,4.41999236]
[1771075370264,0.0011,2071.3,2070.6,1.499]
[1771075370445,0.0011,2071.3,2070.6,2.70637903]
[1771075371045,0.0011,2071.3,2070.6,4.41999189]
[1771075372257,0.0011,2071.3,2070.6,2.70637903]
[1771075375671,0.0011,2071.3,2070.6,4.41999189]
[1771075379271,1.73542785,2071.3,2070.5,1.20739797]
[1771075379446,1.73542785,2071.3,2070.4,2.70547101]
[1771075380555,1.73542785,2071.3,2070.4,1.498]
[1771075380880,1.73542785,2071.3,2070.3,1.20751975]
[1771075381059,1.73542785,2071.3,2070.3,2.70451975]
[1771075381265,2.94244275,2071.3,2070.3,2.70451975]
[1771075381654,2.94239955,2071.3,2070.3,2.70451975]
[1771075382274,1.73542785,2071.3,2070.4,1.64393368]
[1771075382581,0.0011,2071.3,2070.4,1.64393368]
[1771075383255,0.0011,2071.3,2070.5,2.85137149]
[1771075385667,0.0011,2071.3,2070.6,1.64393368]
[1771075386059,0.0011,2071.4,2070.8,1.64393368]
[1771075386259,1.63430106,2071.4,2070.2,0.1024]
[1771075386460,1.63430106,2071.4,2070.0,3.34762206]
[1771075387187,1.63430106,2071.4,2070.1,1.64393368]
[1771075387392,1.63320106,2071.2,2070.2,1.20761279]
[1771075389261,6.46218692,2071.4,2070.3,1.64393368]
[1771075389683,1.63320106,2071.3,2070.3,1.64393368]
[1771075390695,1.63320106,2071.3,2070.2,1.20761279]
[1771075391786,2.8402308,2071.2,2070.2,1.20761279]
[1771075392093,1.20697717,2071.3,2070.3,1.64393368]
[1771075392587,2.84017823,2071.3,2070.3,1.64393368]
[1771075392759,2.84017823,2071.3,2070.3,3.13793368]
[1771075393165,1.63320106,2071.2,2070.3,3.13793368]
[1771075394288,1.63320106,2071.2,2070.4,1.20749613]
[1771075394493,2.84023577,2071.2,2070.4,1.20749613]
[1771075396290,1.2071463,2071.0,2070.4,1.20749613]
[1771075396504,2.84033059,2071.1,2070.4,1.20749613]
[1771075397994,2.84122098,2071.4,2070.5,1.64393368]
[1771075398299,2.84122098,2071.4,2070.6,1.2073795]
[1771075399074,1.20801992,2071.4,2070.6,1.2073795]
[1771075399374,1.63320106,2071.3,2070.6,1.2073795]
[1771075400404,2.84017573,2071.3,2070.4,2.85142981]
[1771075400604,2.84017573,2071.3,2070.3,6.32108487]
[1771075400605,1.63320106,2071.2,2070.3,1.491]
[1771075400902,1.63320106,2071.2,2070.1,0.001]
[1771075401305,0.0011,2071.4,2070.3,1.64393368]
[1771075401493,1.20802326,2071.4,2070.3,1.64393368]
[1771075401702,1.20802326,2071.4,2070.4,1.64393368]
[1771075402100,1.63320106,2071.3,2070.4,1.64393368]
[1771075402296,1.20702974,2071.2,2070.1,2.85259787]
[1771075402498,2.8402308,2071.2,2070.2,3.13493368]
[1771075402702,1.63320106,2071.2,2070.2,3.13493368]
[1771075404010,1.63320106,2071.2,2070.3,1.64393368]
[1771075405590,2.84028436,2071.2,2070.4,1.20749613]
[1771075407610,2.84028436,2071.2,2070.4,2.85142981]
[1771075408191,1.2070833,2071.2,2070.5,1.64393368]
[1771075410131,1.20801759,2071.4,2070.7,1.64393368]
[1771075410290,1.3991,2071.4,2070.7,1.64393368]
[1771075410489,2.60601593,2071.4,2070.7,1.64393368]
[1771075410699,1.3991,2071.4,2070.7,1.64393368]
[1771075410901,7.65045891,2071.2,2070.0,0.001]
[1771075411125,7.65045891,2071.2,2069.9,0.001]
[1771075411126,1.63320106,2071.1,2069.9,0.001]
[1771075411492,1.52182227,2070.9,2069.9,0.001]
[1771075411692,1.52182227,2070.7,2069.9,0.001]
[1771075412114,1.52182227,2070.3,2069.9,0.001]
[1771075412338,1.52182227,2070.2,2069.9,0.001]
[1771075412868,1.415,2070.3,2069.9,0.001]
[1771075413015,2.93682227,2070.3,2069.9,0.001]
[1771075413224,1.52182227,2070.2,2069.9,0.001]
[1771075413946,1.52182227,2070.2,2069.8,0.001]
[1771075414134,1.52182227,2070.0,2069.5,0.001]
[1771075414329,1.52182227,2070.0,2069.4,0.001]
[1771075414921,1.52182227,2070.0,2068.8,1.487929]
[1771075415120,1.52182227,2070.0,2068.7,1e-08]
[1771075415339,1.52182227,2069.8,2068.7,1e-08]
[1771075415646,1.52182227,2069.7,2068.7,1e-08]
[1771075415822,2.94582227,2069.6,2068.7,2.69640198]
[1771075416022,2.94582227,2069.6,2068.7,1.48792901]
[1771075416228,1.20802126,2069.5,2068.7,1.48792901]
[1771075416429,4.15381803,2069.6,2068.7,1.48792901]
[1771075416626,0.869,2069.9,2068.8,1.487929]
[1771075416825,0.869,2069.9,2068.7,1.20847573]
[1771075416826,0.869,2069.9,2069.0,1.487929]
[1771075417221,2.07679671,2069.9,2069.0,1.487929]
[1771075417420,1.52182227,2070.5,2069.0,1.487929]
[1771075417625,1.52182227,2070.3,2069.0,1.487929]
[1771075418222,1.52182227,2070.1,2069.1,1.20825479]
[1771075419212,4.83045116,2070.3,2069.2,1.487929]
[1771075419213,1.52182227,2070.3,2069.2,1.487929]
[1771075419500,1.52182227,2070.3,2069.0,1.20827567]
[1771075419876,1.52182227,2070.3,2069.0,2.69620467]
[1771075420177,1.56623509,2070.6,2069.3,1.487929]
[1771075420367,0.35881923,2070.6,2069.3,1.487929]
[1771075420569,0.35881923,2070.6,2069.2,1.2081964]
[1771075420570,0.35881923,2070.6,2069.5,1.48180161]
[1771075420968,0.35881923,2070.6,2069.7,1.48180161]
[1771075421165,0.35881923,2070.6,2069.9,1.48180161]
[1771075422183,0.35881923,2070.6,2069.7,1.20790452]
[1771075422373,0.35881923,2070.6,2069.8,1.48180161]
[1771075423289,1.20842354,2070.7,2069.8,1.48180161]
[1771075423456,0.0011,2070.7,2069.8,1.48180161]
[1771075424288,0.0011,2070.7,2069.9,2.68958942]
[1771075424493,0.0011,2070.7,2070.0,1.48180161]
[1771075425563,0.0011,2070.9,2070.1,5.353033]